bitfinex/quotes_SOLUSD_20240713
["timestamp","ask_amount","ask_price","bid_price","bid_amount"]
[1720850839487,11.6,139.15,139.12,0.8660128]
[1720850839684,0.5,139.14,139.12,0.8660128]
[1720850840908,0.5,139.15,139.12,0.8660128]
[1720850842006,12.1,139.15,139.12,0.8660128]
[1720850844907,11.6,139.14,139.12,0.8660128]
[1720850845110,0.5,139.13,139.12,0.8660128]
[1720850846608,0.5,139.14,139.12,0.8660128]
[1720850847895,12.1,139.14,139.12,0.8660128]
[1720850848098,0.5,139.14,139.12,0.8660128]
[1720850851014,12.1,139.14,139.12,0.8660128]
[1720850851314,0.5,139.14,139.12,0.8660128]
[1720850874119,0.5,139.15,139.12,0.8660128]
[1720850874318,20.5,139.16,139.12,0.8660128]
[1720850874532,20.5,139.18,139.13,11.6]
[1720850874724,0.5,139.17,139.13,11.6]
[1720850874924,20.5,139.17,139.13,11.6]
[1720850877335,0.5,139.17,139.13,11.6]
[1720850877536,20.5,139.17,139.13,11.6]
[1720850880627,0.5,139.17,139.14,1.43730767]
[1720850880931,20.5,139.17,139.13,11.6]
[1720850881132,32.1,139.17,139.12,7.4661128]
[1720850881320,32.1,139.17,139.12,19.0661128]
[1720850881742,11.6,139.16,139.12,7.4661128]
[1720850882238,0.5,139.15,139.12,0.8660128]
[1720850883533,12.1,139.16,139.12,0.8660128]
[1720850884054,0.5,139.16,139.12,0.8660128]
[1720850884235,11.6,139.16,139.12,0.8660128]
[1720850884436,0.5,139.15,139.12,0.8660128]
[1720850885540,0.5,139.16,139.12,0.8660128]
[1720850885756,12.1,139.16,139.12,0.8660128]
[1720850886527,0.5,139.15,139.12,0.8660128]
[1720850888047,12.1,139.15,139.12,0.8660128]
[1720850888931,11.6,139.14,139.12,0.8660128]
[1720850889234,0.5,139.13,139.12,0.8660128]
[1720850892350,0.5,139.17,139.12,0.8660128]
[1720850892530,11.6,139.15,139.12,0.8660128]
[1720850892734,0.5,139.14,139.12,0.8660128]
[1720850895464,11.6,139.15,139.12,0.8660128]
[1720850895764,0.5,139.14,139.12,0.8660128]
[1720850897937,12.1,139.14,139.12,0.8660128]
[1720850899441,0.5,139.14,139.12,0.8660128]
[1720850901747,0.5,139.15,139.12,0.8660128]
[1720850902161,12.1,139.16,139.12,0.8660128]
[1720850902850,0.5,139.16,139.12,0.8660128]
[1720850903048,32.1,139.16,139.12,0.8660128]
[1720850903353,12.1,139.16,139.12,0.8660128]
[1720850903552,0.5,139.16,139.12,0.8660128]
[1720850903743,11.6,139.15,139.12,0.8660128]
[1720850912848,0.5,139.18,139.12,0.8660128]
[1720850913051,11.6,139.16,139.12,0.8660128]
[1720850913250,0.5,139.15,139.12,0.8660128]
[1720850916499,0.5,139.17,139.12,7.5012128]
[1720850916771,0.5,139.17,139.12,20.53857626]
[1720850917069,12.1,139.18,139.13,11.6]
[1720850917265,12.1,139.18,139.14,1.43718388]
[1720850919675,0.5,139.18,139.14,1.43718388]
[1720850919861,12.1,139.18,139.14,1.43718388]
[1720850920060,11.6,139.18,139.14,1.43718388]
[1720850920263,11.6,139.18,139.15,1.43718377]
[1720850920473,0.5,139.2,139.14,13.03713396]
[1720850920674,11.6,139.19,139.15,17.601876]
[1720850920868,20.0,139.18,139.15,17.601876]
[1720850921468,0.5,139.21,139.15,16.1648]
[1720850921661,0.5,139.21,139.15,29.20183515]
[1720850921862,11.6,139.2,139.15,29.20183515]
[1720850922162,32.1,139.19,139.15,17.60183515]
[1720850922467,32.1,139.19,139.15,16.1648]
[1720850923273,20.5,139.19,139.15,16.1648]
[1720850923473,11.6,139.18,139.15,16.1648]
[1720850923675,0.5,139.17,139.15,16.1648]
[1720850924081,12.1,139.17,139.15,16.1648]
[1720850927372,11.6,139.16,139.12,23.9211128]
[1720850927576,0.5,139.19,139.12,23.9211128]
[1720850927780,11.6,139.16,139.12,23.9211128]
[1720850927971,11.6,139.16,139.12,25.3584159]
[1720850928771,11.6,139.16,139.12,23.9211128]
[1720850929276,0.5,139.19,139.13,1.43729856]
[1720850929473,20.5,139.19,139.13,1.43729856]
[1720850929673,11.6,139.17,139.13,1.43729856]
[1720850929880,12.1,139.17,139.13,1.43729856]
[1720850930477,0.5,139.18,139.13,13.03729856]
[1720850931169,0.5,139.21,139.13,13.03729856]
[1720850931367,11.6,139.2,139.15,11.6]
[1720850931579,12.1,139.19,139.14,11.6]
[1720850932082,12.1,139.19,139.13,11.6]
[1720850932476,12.1,139.19,139.13,13.03705614]
[1720850932670,11.6,139.18,139.13,1.43705614]
[1720850932877,11.6,139.18,139.13,13.03705614]
[1720850934001,10.0,139.21,139.13,1.43705614]
[1720850934002,11.6,139.17,139.13,1.43705614]
[1720850934371,11.6,139.18,139.13,13.03705614]
[1720850937295,0.5,139.17,139.13,1.43705614]
[1720850938197,0.5,139.17,139.12,35.5211128]
[1720850940595,11.6,139.18,139.13,1.4372019]
[1720850940900,11.6,139.18,139.13,13.0372019]
[1720850942198,12.1,139.17,139.12,35.5211128]
[1720850944080,11.6,139.15,139.12,23.9211128]
[1720850946300,11.6,139.16,139.12,23.9211128]
[1720850947005,12.1,139.15,139.12,23.9211128]
[1720850950120,0.5,139.15,139.12,23.9211128]
[1720850950325,20.5,139.18,139.12,23.9211128]
[1720850950525,0.5,139.17,139.12,23.9211128]
[1720850955543,0.5,139.17,139.12,25.35863205]
[1720850955754,11.6,139.16,139.12,25.35863205]
[1720850956237,0.5,139.15,139.12,23.9211128]
[1720850962842,12.1,139.16,139.12,23.9211128]
[1720850963939,20.0,139.18,139.13,1.43739429]
[1720850963940,12.1,139.17,139.13,1.43739429]
[1720850965030,0.5,139.17,139.13,1.43739429]
[1720850965233,12.1,139.17,139.13,1.43739429]
[1720850965529,11.6,139.17,139.13,1.43739429]
[1720850967040,0.5,139.19,139.14,11.6]
[1720850967345,12.1,139.19,139.14,11.6]
[1720850967556,0.5,139.18,139.14,11.6]
[1720850967743,0.5,139.21,139.15,1.43721093]
[1720850968043,11.6,139.19,139.15,1.43721093]
[1720850969726,11.6,139.2,139.16,16.665]
[1720850970129,0.5,139.21,139.16,34.4608]
[1720850970333,12.1,139.21,139.16,34.4608]
[1720850970536,12.1,139.2,139.16,22.8608]
[1720850971944,12.1,139.2,139.16,24.2976808]
[1720850972643,11.6,139.19,139.16,22.8608]
[1720850976138,0.5,139.2,139.16,22.8608]
[1720850976341,11.6,139.19,139.16,22.8608]
[1720850977941,11.6,139.2,139.16,22.8608]
[1720850978262,0.5,139.19,139.16,22.8608]
[1720850980948,12.1,139.2,139.16,24.29781763]
[1720850982049,11.6,139.2,139.16,22.8608]
[1720850983449,0.5,139.19,139.16,22.8608]
[1720850983751,12.1,139.2,139.16,22.8608]
[1720850984665,11.6,139.2,139.16,22.8608]
[1720850985743,0.5,139.19,139.16,22.8608]
[1720850987946,12.1,139.19,139.16,22.8608]
[1720850991364,0.5,139.19,139.16,22.8608]
[1720850992957,11.6,139.2,139.16,22.8608]
[1720850993173,0.5,139.19,139.16,22.8608]
[1720850993666,11.6,139.2,139.16,22.8608]
[1720850993841,0.5,139.19,139.16,22.8608]
[1720850996458,0.5,139.2,139.16,22.8608]
[1720850996666,0.5,139.2,139.17,1.43705566]
[1720850997551,22.92409906,139.24,139.17,1.43705566]
[1720850997552,0.5,139.23,139.17,1.43705566]
[1720850997747,11.6,139.21,139.17,1.43705566]
[1720850999266,0.5,139.22,139.17,1.43705566]
[1720850999447,11.6,139.21,139.17,1.43705566]
[1720850999650,0.5,139.2,139.16,34.4608]
[1720851000145,11.6,139.21,139.17,1.43691184]
[1720851001666,11.6,139.21,139.16,34.4608]
[1720851001969,0.5,139.2,139.16,34.4608]
[1720851002268,12.1,139.2,139.16,22.8608]
[1720851002953,0.5,139.2,139.16,22.8608]
[1720851003147,11.6,139.2,139.16,22.8608]
[1720851003351,11.6,139.2,139.16,24.29777628]
[1720851003746,11.6,139.21,139.16,35.89777628]
[1720851003955,11.6,139.2,139.16,22.8608]
[1720851004345,0.5,139.19,139.16,22.8608]
[1720851004760,11.6,139.2,139.16,22.8608]
[1720851004964,11.6,139.2,139.16,24.29772663]
[1720851005839,0.5,139.22,139.16,34.4608]
[1720851006041,11.6,139.21,139.17,1.43685214]
[1720851008364,0.5,139.23,139.17,13.03685214]
[1720851008551,0.5,139.26,139.19,22.7795]
[1720851008751,0.5,139.26,139.2,13.0365026]
[1720851009076,11.6,139.26,139.21,13.03647486]
[1720851010561,0.5,139.3,139.21,13.03647486]
[1720851010753,0.5,139.29,139.23,16.5172]
[1720851011061,11.6,139.27,139.24,1.43622508]
[1720851011262,11.6,139.27,139.23,17.95342508]
[1720851011579,11.6,139.27,139.24,1.43622527]
[1720851011758,11.6,139.27,139.23,17.95342527]
[1720851011958,11.6,139.27,139.23,16.5172]
[1720851015155,12.1,139.26,139.23,16.5172]
[1720851018179,0.5,139.26,139.23,16.5172]
[1720851022059,11.6,139.27,139.23,16.5172]
[1720851022258,0.5,139.26,139.23,16.5172]
[1720851029398,11.6,139.27,139.23,16.5172]
[1720851030072,0.5,139.26,139.23,16.5172]
[1720851031588,11.6,139.27,139.23,16.5172]
[1720851031890,0.5,139.29,139.23,23.0765]
[1720851032071,11.6,139.27,139.23,23.0765]
[1720851033795,11.6,139.26,139.23,23.0765]
[1720851039074,0.5,139.29,139.23,23.0765]
[1720851039297,11.6,139.26,139.23,23.0765]
[1720851039594,11.6,139.27,139.23,23.0765]
[1720851039792,11.6,139.27,139.23,24.51272862]
[1720851039993,11.6,139.27,139.23,23.0765]
[1720851040198,11.6,139.26,139.23,23.0765]
[1720851045100,0.5,139.25,139.23,23.0765]
[1720851045296,11.6,139.26,139.23,23.0765]
[1720851045987,0.5,139.29,139.23,23.0765]
[1720851046174,11.6,139.26,139.23,23.0765]
[1720851046374,0.5,139.29,139.23,23.0765]
[1720851046590,11.6,139.27,139.23,23.0765]
[1720851051195,0.5,139.29,139.24,1.4362488]
[1720851051505,2.94277754,139.32,139.24,1.4362488]
[1720851051506,11.6,139.28,139.24,1.4362488]
[1720851052600,11.6,139.29,139.24,13.0362488]
[1720851054001,0.5,139.28,139.24,1.4362488]
[1720851054204,12.1,139.28,139.24,1.4362488]
[1720851054584,11.6,139.28,139.24,1.4362488]
[1720851056006,0.5,139.32,139.24,1.4362488]
[1720851056203,11.6,139.28,139.24,1.4362488]
[1720851057006,11.6,139.29,139.24,1.4362488]
[1720851058006,11.6,139.3,139.24,1.4362488]
[1720851058201,0.5,139.31,139.26,15.8986]
[1720851058388,11.6,139.3,139.26,17.33455999]
[1720851063088,11.6,139.29,139.26,15.8986]
[1720851063678,0.5,139.28,139.26,15.8986]
[1720851063883,11.6,139.27,139.23,21.8466]
[1720851064607,11.6,139.26,139.23,21.8466]
[1720851065407,11.6,139.27,139.23,21.8466]
[1720851067609,12.1,139.26,139.23,21.8466]
[1720851067913,11.6,139.25,139.23,21.8466]
[1720851068502,12.1,139.24,139.2,15.2873]
[1720851068687,11.6,139.23,139.2,15.2873]
[1720851070297,0.5,139.27,139.2,15.2873]
[1720851070298,11.6,139.24,139.2,15.2873]
[1720851070686,11.6,139.28,139.2,15.2873]
[1720851070687,11.6,139.22,139.2,15.2873]
[1720851070891,12.1,139.21,139.16,15.2873]
[1720851071100,12.1,139.2,139.16,15.2873]
[1720851071293,0.5,139.24,139.17,1.43697442]
[1720851071507,11.6,139.22,139.17,13.03697442]
[1720851072213,12.1,139.21,139.16,26.8873]
[1720851072712,12.1,139.21,139.16,15.2873]
[1720851072920,11.6,139.2,139.16,16.72414454]
[1720851073300,11.6,139.21,139.16,16.72414454]
[1720851074123,0.5,139.24,139.16,15.2873]
[1720851074419,11.6,139.24,139.19,11.6]
[1720851074711,12.1,139.23,139.18,13.0366356]
[1720851075293,11.6,139.24,139.19,11.6]
[1720851075516,11.6,139.24,139.2,1.4365618]
[1720851076224,11.6,139.24,139.19,11.6]
[1720851076398,0.5,139.23,139.19,11.6]
[1720851076599,11.6,139.22,139.16,15.2873]
[1720851076807,11.6,139.22,139.17,11.6]
[1720851079894,10.0,139.26,139.17,1.43672292]
[1720851079895,12.1,139.21,139.17,1.43672292]
[1720851080122,0.5,139.21,139.17,1.43672292]
[1720851080416,0.5,139.21,139.17,1.4368457]
[1720851080590,0.5,139.21,139.17,1.43684266]
[1720851080793,11.6,139.2,139.16,15.2873]
[1720851081002,0.5,139.19,139.16,15.2873]
[1720851081201,12.1,139.19,139.16,15.2873]
[1720851081417,11.6,139.19,139.16,15.2873]
[1720851081793,11.6,139.18,139.16,15.2873]
[1720851082697,0.5,139.23,139.16,15.2873]
[1720851082906,11.6,139.2,139.16,15.2873]
[1720851084223,0.5,139.19,139.16,15.2873]
[1720851089416,11.6,139.18,139.16,15.2873]
[1720851089614,11.6,139.18,139.15,6.6012]
[1720851090632,11.6,139.18,139.13,27.0999]
[1720851090815,11.6,139.18,139.13,15.4999]
[1720851091015,11.6,139.18,139.13,27.0999]
[1720851092021,11.6,139.18,139.14,1.43713409]
[1720851094316,11.6,139.18,139.14,13.03713409]
[1720851095731,11.6,139.2,139.15,11.6]
[1720851095919,11.6,139.2,139.16,1.437008]
[1720851096715,0.5,139.19,139.16,1.437008]
[1720851097031,12.1,139.19,139.15,1.43704542]
[1720851112347,0.5,139.19,139.15,1.43704542]
[1720851112541,11.6,139.19,139.15,1.43704542]
[1720851112728,11.6,139.2,139.14,13.03704298]
[1720851112925,0.5,139.19,139.15,1.43704298]
[1720851113262,0.5,139.19,139.15,13.03704298]
[1720851116060,11.6,139.2,139.15,13.03704298]
[1720851116241,0.5,139.19,139.15,13.03704298]
[1720851117637,0.5,139.21,139.15,13.03704298]
[1720851117953,12.1,139.21,139.16,11.6]
[1720851118155,11.6,139.21,139.17,1.43683265]
[1720851118852,11.6,139.21,139.18,1.43684547]
[1720851120132,11.6,139.21,139.16,11.6]
[1720851120550,11.6,139.21,139.17,1.43681448]
[1720851122538,0.5,139.23,139.18,11.6]
[1720851122733,12.1,139.24,139.19,13.03671209]
[1720851122931,56.4,139.28,139.19,13.03671209]
[1720851122932,0.5,139.27,139.19,13.03671209]
[1720851123141,11.6,139.24,139.19,13.03671209]
[1720851127059,0.5,139.26,139.21,28.2181]
[1720851127256,11.6,139.26,139.22,1.43636505]
[1720851127443,12.1,139.25,139.22,1.43636505]
[1720851127644,12.1,139.25,139.21,18.05452123]
[1720851127846,11.6,139.24,139.21,16.6181]
[1720851128047,11.6,139.23,139.2,6.0685]
[1720851131041,0.5,139.27,139.2,6.0685]
[1720851131242,11.6,139.24,139.2,6.0685]
[1720851131458,0.5,139.26,139.21,1.43654428]
[1720851131677,11.6,139.25,139.21,1.43654428]
[1720851132758,11.6,139.24,139.21,1.43654428]
[1720851133064,12.1,139.28,139.21,1.43654428]
[1720851133265,11.6,139.25,139.21,1.43654428]
[1720851134664,0.5,139.28,139.21,1.43654428]
[1720851134868,11.6,139.25,139.21,1.43654428]
[1720851139071,12.1,139.24,139.2,6.0685]
[1720851139254,11.6,139.22,139.18,16.6181]
[1720851142679,0.5,139.27,139.19,13.03668015]
[1720851142680,11.6,139.24,139.19,13.03668015]
[1720851142846,0.5,139.23,139.19,13.03668015]
[1720851143557,0.5,139.27,139.19,13.03668015]
[1720851143764,11.6,139.25,139.2,11.6]
[1720851144069,12.1,139.24,139.19,13.03668015]
[1720851144248,11.6,139.24,139.19,13.03668015]
[1720851146173,0.5,139.27,139.19,13.03668015]
[1720851146370,20.5,139.27,139.19,13.03668015]
[1720851146575,11.6,139.24,139.19,13.03668015]
[1720851147356,11.6,139.24,139.19,1.43668015]
[1720851147567,11.6,139.24,139.19,13.03668015]
[1720851147961,11.6,139.24,139.19,1.43668015]
[1720851148260,11.6,139.24,139.19,13.03668015]
[1720851150679,0.5,139.23,139.18,16.6181]
[1720851150855,0.5,139.23,139.18,28.2181]
[1720851150856,11.6,139.23,139.18,28.2181]
[1720851151055,0.5,139.22,139.18,28.2181]
[1720851151480,12.1,139.22,139.18,16.6181]
[1720851151681,11.6,139.22,139.18,16.6181]
[1720851152281,0.5,139.26,139.19,1.43668602]
[1720851152479,11.6,139.23,139.19,1.43668602]
[1720851153881,0.5,139.22,139.19,1.43668602]
[1720851154209,0.5,139.22,139.18,28.2181]
[1720851154688,12.1,139.22,139.18,16.6181]
[1720851154860,12.1,139.22,139.18,18.05478673]
[1720851155482,0.5,139.25,139.18,29.65478673]
[1720851155686,11.6,139.23,139.18,29.65478673]
[1720851157085,0.5,139.22,139.18,29.65478673]
[1720851157885,11.6,139.23,139.18,29.65478673]
[1720851158091,11.6,139.24,139.18,29.65478673]
[1720851158569,0.5,139.23,139.18,29.65478673]
[1720851159796,11.6,139.24,139.19,11.6]
[1720851160093,11.6,139.24,139.2,1.43655239]
[1720851160895,11.6,139.24,139.19,11.6]
[1720851161378,11.6,139.24,139.2,1.43655511]
[1720851163288,11.6,139.24,139.19,13.03655463]
[1720851164594,0.5,139.23,139.19,13.03655463]
[1720851165198,11.6,139.24,139.19,13.03655463]
[1720851165710,11.6,139.25,139.19,13.03655463]
[1720851165875,0.5,139.26,139.19,13.03655463]
[1720851165876,0.5,139.26,139.2,17.7816]
[1720851166075,11.6,139.25,139.2,17.7816]
[1720851166293,0.5,139.27,139.2,6.1816]
[1720851166595,11.6,139.26,139.21,11.6]
[1720851166773,0.5,139.25,139.21,11.6]
[1720851167400,12.1,139.25,139.2,6.1816]
[1720851167602,12.1,139.25,139.2,17.7816]
[1720851167891,12.1,139.25,139.2,6.1816]
[1720851168089,12.1,139.25,139.2,17.7816]
[1720851169218,12.1,139.25,139.2,6.1816]
[1720851169399,12.1,139.25,139.2,17.7816]
[1720851170194,0.5,139.25,139.2,17.7816]
[1720851170383,11.6,139.25,139.21,1.43643202]
[1720851170698,11.6,139.26,139.21,13.03643202]
[1720851170894,0.5,139.25,139.21,13.03643202]
[1720851171097,20.5,139.28,139.21,13.03643202]
[1720851171306,11.6,139.26,139.21,13.03643202]
[1720851172092,11.6,139.26,139.22,15.6967]
[1720851172315,20.0,139.28,139.23,1.43626428]
[1720851172603,12.1,139.27,139.23,1.43626428]
[1720851173223,0.5,139.27,139.23,13.03626428]
[1720851173529,11.6,139.28,139.24,1.43627274]
[1720851175711,11.6,139.28,139.23,13.03617243]
[1720851175913,11.6,139.28,139.24,1.43617259]
[1720851180719,0.5,139.3,139.25,11.6]
[1720851180909,11.6,139.3,139.26,1.43595344]
[1720851181812,0.5,139.29,139.26,1.43595344]
[1720851182020,12.1,139.29,139.25,1.43597835]
[1720851182615,11.6,139.29,139.25,1.43597835]
[1720851183907,0.5,139.34,139.25,1.43597835]
[1720851184243,11.6,139.3,139.25,13.03597835]
[1720851188727,0.5,139.33,139.26,15.8037]
[1720851188929,11.6,139.3,139.26,15.8037]
[1720851189925,11.6,139.3,139.27,1.43585662]
[1720851190529,11.6,139.3,139.26,15.8037]
[1720851191623,0.5,139.33,139.26,15.8037]
[1720851191931,11.6,139.3,139.27,1.43585671]
[1720851192526,11.6,139.3,139.26,15.8037]
[1720851194242,12.1,139.29,139.26,15.8037]
[1720851200045,0.5,139.29,139.26,15.8037]
[1720851200336,12.1,139.29,139.26,15.8037]
[1720851200532,11.6,139.28,139.24,6.1816]
[1720851201735,0.5,139.27,139.24,6.1816]
[1720851202125,11.6,139.29,139.24,7.61774668]
[1720851202436,11.6,139.29,139.24,19.21774668]
[1720851204129,11.6,139.29,139.24,17.7816]
[1720851211757,0.5,139.28,139.24,6.1816]
[1720851214640,11.6,139.26,139.22,15.8037]
[1720851214949,0.5,139.25,139.22,15.8037]
[1720851215555,12.1,139.25,139.22,15.8037]
[1720851215754,11.6,139.25,139.22,15.8037]
[1720851216050,0.5,139.28,139.22,27.4037]
[1720851216247,0.5,139.29,139.24,17.9985]
[1720851216452,11.6,139.3,139.25,13.03600503]
[1720851216822,0.5,139.29,139.25,13.03600503]
[1720851217664,11.6,139.3,139.25,13.03600503]
[1720851218150,0.5,139.29,139.25,13.03600503]
[1720851218849,11.6,139.3,139.25,13.03600503]
[1720851219021,0.5,139.29,139.25,1.43600503]
[1720851219225,11.6,139.3,139.26,11.6]
[1720851219446,11.6,139.3,139.25,13.03600503]
[1720851219652,11.6,139.31,139.26,11.6]
[1720851219947,12.1,139.3,139.26,16.445]
[1720851220151,11.6,139.3,139.26,16.445]
[1720851220953,0.5,139.32,139.27,1.43591861]
[1720851221256,11.6,139.31,139.27,1.43591861]
[1720851221550,0.5,139.3,139.27,1.43591861]
[1720851221728,0.5,139.32,139.27,1.43591861]
[1720851221931,11.6,139.31,139.27,1.43591861]
[1720851225356,0.5,139.32,139.27,1.43591861]
[1720851225656,11.6,139.31,139.27,1.43591861]
[1720851225950,0.5,139.32,139.27,1.43591861]
[1720851226153,11.6,139.31,139.27,1.43591861]
[1720851229559,0.5,139.32,139.28,6.2321]
[1720851229734,11.6,139.31,139.28,6.2321]
[1720851230233,0.5,139.33,139.28,6.2321]
[1720851230434,0.5,139.34,139.29,1.43573087]
[1720851230640,11.6,139.33,139.29,1.43573087]
[1720851233057,0.5,139.37,139.29,1.43573087]
[1720851233260,0.5,139.37,139.3,26.8226]
[1720851233261,11.6,139.35,139.3,26.8226]
[1720851233450,12.1,139.34,139.3,15.2226]
[1720851233648,11.6,139.34,139.3,16.65809416]
[1720851242637,12.1,139.33,139.3,15.2226]
[1720851242849,11.6,139.32,139.3,15.2226]
[1720851243657,11.6,139.31,139.3,15.2226]
[1720851243863,57.95416611,139.38,139.28,6.2321]
[1720851244172,11.6,139.31,139.28,6.2321]
[1720851244373,0.5,139.3,139.28,6.2321]
[1720851245267,11.6,139.31,139.28,6.2321]
[1720851245467,0.5,139.3,139.28,6.2321]
[1720851245646,11.6,139.29,139.28,6.2321]
[1720851246255,11.6,139.3,139.28,6.2321]
[1720851248685,0.5,139.29,139.27,16.4832]
[1720851248862,12.1,139.29,139.27,16.4832]
[1720851249066,11.6,139.29,139.27,16.4832]
[1720851250781,12.1,139.28,139.25,6.3963]
[1720851252659,0.5,139.33,139.26,1.43601269]
[1720851252996,0.5,139.33,139.25,6.3963]
[1720851252997,11.6,139.29,139.25,6.3963]
[1720851253286,0.5,139.28,139.25,6.3963]
[1720851253657,12.1,139.28,139.25,6.3963]
[1720851255270,12.1,139.28,139.23,28.0832]
[1720851255583,12.1,139.28,139.24,20.0]
[1720851256257,11.6,139.27,139.24,20.0]
[1720851256461,11.6,139.26,139.23,16.4832]
[1720851256983,11.6,139.27,139.23,16.4832]
[1720851259869,12.1,139.26,139.23,16.4832]
[1720851260277,11.6,139.25,139.23,16.4832]
[1720851260477,11.6,139.25,139.22,6.3963]
[1720851260692,11.6,139.25,139.2,28.0832]
[1720851260989,11.6,139.25,139.21,20.0]
[1720851261187,11.6,139.26,139.21,31.6]
[1720851262567,0.5,139.25,139.21,31.6]
[1720851264792,12.1,139.25,139.21,20.0]
[1720851269102,0.5,139.25,139.21,20.0]
[1720851269305,0.5,139.27,139.21,20.0]
[1720851269598,11.6,139.25,139.21,21.43656209]
[1720851275609,0.5,139.27,139.21,21.43656209]
[1720851275816,11.6,139.25,139.21,21.43656209]
[1720851280086,12.1,139.24,139.21,20.0]
[1720851284411,11.6,139.23,139.21,20.0]
[1720851284704,0.5,139.22,139.21,20.0]
[1720851285086,11.6,139.23,139.21,20.0]
[1720851285810,11.6,139.24,139.21,20.0]
[1720851286112,0.5,139.23,139.21,20.0]
[1720851287538,11.6,139.23,139.21,20.0]
[1720851287713,0.5,139.22,139.21,20.0]
[1720851291513,11.6,139.23,139.21,20.0]
[1720851292232,0.5,139.22,139.2,16.4832]
[1720851293542,0.5,139.25,139.2,16.4832]
[1720851296527,11.6,139.23,139.2,16.4832]
[1720851298744,12.1,139.22,139.2,16.4832]
[1720851299041,11.6,139.22,139.2,16.4832]
[1720851299343,0.5,139.27,139.2,16.4832]
[1720851299543,11.6,139.23,139.2,16.4832]
[1720851302669,11.6,139.22,139.2,16.4832]
[1720851303866,11.6,139.23,139.2,16.4832]
[1720851307055,0.5,139.26,139.2,16.4832]
[1720851307240,0.5,139.26,139.21,1.43651098]
[1720851307437,0.5,139.26,139.2,17.91971715]
[1720851310356,0.5,139.26,139.2,16.4832]
[1720851312659,20.5,139.27,139.2,16.4832]
[1720851312960,0.5,139.26,139.2,16.4832]
[1720851314159,45.5,139.26,139.2,16.4832]
[1720851314348,0.5,139.26,139.21,1.43665273]
[1720851314559,11.6,139.26,139.21,21.43665273]
[1720851314865,11.6,139.24,139.21,21.43665273]
[1720851315861,11.6,139.23,139.21,21.43665273]
[1720851317567,11.6,139.23,139.21,20.0]
[1720851319381,11.6,139.23,139.2,16.4832]
[1720851320455,11.6,139.22,139.2,16.4832]
[1720851322145,11.6,139.23,139.2,16.4832]
[1720851322745,11.6,139.24,139.2,16.4832]
[1720851325756,0.5,139.23,139.2,17.91980049]
[1720851327078,0.5,139.23,139.2,16.4832]
[1720851327365,0.5,139.23,139.2,17.91984678]
[1720851327668,0.5,139.23,139.2,16.4832]
[1720851331269,11.6,139.21,139.17,16.6304]
[1720851331570,11.6,139.21,139.17,18.06721405]
[1720851333565,11.6,139.2,139.17,18.06721405]
[1720851334422,12.1,139.19,139.13,16.6304]
[1720851334560,12.1,139.19,139.14,31.6]
[1720851334758,11.6,139.18,139.14,21.4371236]